[Event "WSTCC-65 2020"]
[Site "Prague"]
[Date "2020.03.06"]
[Round "1.32"]
[White "Karnaukh, Anatolij"]
[Black "Boguszlavszkij, Jevgenyij"]
[Result "1-0"]
[ECO "D45"]
[WhiteElo "2087"]
[BlackElo "2155"]
[Annotator "ChessBase"]
[PlyCount "101"]
[EventDate "2020.03.06"]
[EventType "team-tourn"]
[EventCountry "CZE"]
[SourceTitle "playchess.com"]
[Source "ChessBase"]
[SourceQuality "1"]
[TimeControl "40/5400+30:1800+30"]

1. d4 {[%emt 0:00:00]} Nf6 {[%emt 0:00:00]} 2. Nf3 {[%emt 0:00:00]} d5 {[%emt 0:00:02]} 3. c4 {[%emt 0:00:00]} e6 {[%emt 0:00:08]} 4. Nc3 {[%emt 0:00:09]} c6 {[%emt 0:00:11]} 5. e3 {[%emt 0:00:33]} Bd6 {[%emt 0:00:32]} 6. Qc2 {[%emt 0:00:55]} O-O {[%emt 0:00:21]} 7. Bd2 {[%emt 0:01:58]} Nbd7 {[%emt 0:00:24]} 8. cxd5 {[%emt 0:01:33]} exd5 {[%emt 0:00:13]} 9. Bd3 {[%emt 0:00:20]} Re8 {[%emt 0:00:20]} 10. O-O {[%emt 0:01:41]} Qe7 {[%emt 0:02:20]} 11. Rae1 {[%emt 0:15:27]} Ne4 {[%emt 0:01:58]} 12. h3 {[%emt 0:02:34]} Ndf6 {[%emt 0:05:49]} 13. Nh2 {[%emt 0:12:12]} Bd7 {[%emt 0:24:27]} 14. f4 {[%emt 0:01:18]} Ng3 {[%emt 0:02:48]} 15. Rf3 {[%emt 0:01:46]} Nfe4 {[%emt 0:00:54]} 16. Nxe4 {[%emt 0:08:59]} Nxe4 {[%emt 0:02:49]} 17. Rd1 {[%emt 0:03:15]} Rac8 {[%emt 0:02:34]} 18. Qb1 {[%emt 0:06:42]} h5 {[%emt 0:02:39]} 19. Nf1 {[%emt 0:04:25]} c5 {[%emt 0:01:21]} 20. dxc5 {[%emt 0:03:06]} Bxc5 {[%emt 0:01:03]} 21. Be1 {[%emt 0:00:50]} Bc6 {[%emt 0:03:08]} 22. b4 {[%emt 0:06:07]} Bb6 {[%emt 0:00:39]} 23. b5 {[%emt 0:04:39]} Bd7 {[%emt 0:02:28]} 24. Qb3 {[%emt 0:07:51]} Nf6 {[%emt 0:17:51]} 25. Bh4 {[%emt 0:02:20]} Rc5 {[%emt 0:01:51]} 26. Qb2 {[%emt 0:02:21]} Ba5 {[%emt 0:05:37]} 27. Bxf6 {[%emt 0:01:25]} Qxf6 {[%emt 0:00:33]} 28. Qxf6 {[%emt 0:00:09]} gxf6 {[%emt 0:00:03]} 29. a4 {[%emt 0:00:24]} Bb6 {[%emt 0:01:37]} 30. Ng3 {[%emt 0:02:20]} Kf8 {[%emt 0:07:34]} 31. Nxh5 {[%emt 0:00:40]} Rxe3 {[%emt 0:02:08]} 32. Rxe3 {[%emt 0:02:26]} Rc1 {[%emt 0:00:48]} 33. Rxc1 {[%emt 0:00:27]} Bxe3+ {[%emt 0:00:07]} 34. Kf1 {[%emt 0:00:06]} Bxc1 {[%emt 0:00:10]} 35. Nxf6 {[%emt 0:00:12]} Bc8 {[%emt 0:01:37]} 36. f5 {[%emt 0:01:45]} d4 {[%emt 0:00:32]} 37. g4 {[%emt 0:00:55]} Ke7 {[%emt 0:03:02]} 38. Ne4 {[%emt 0:00:32]} f6 {[%emt 0:00:45]} 39. Bc4 {[%emt 0:02:08]} a6 {[%emt 0:03:26]} 40. Ke2 {[%emt 0:00:00]} axb5 {[%emt 0:00:00]} 41. axb5 {[%emt 0:01:00]} b6 {[%emt 0:01:47]} 42. Bd5 {[%emt 0:00:55]} Bf4 {[%emt 0:02:05]} 43. Kd3 {[%emt 0:00:43]} Bd7 {[%emt 0:01:51]} 44. Bc6 {[%emt 0:01:03]} Bxc6 {[%emt 0:01:42]} 45. bxc6 {[%emt 0:06:53]} Be5 {[%emt 0:00:15]} 46. h4 {[%emt 0:00:39]} b5 {[%emt 0:00:47]} 47. g5 {[%emt 0:00:29]} fxg5 {[%emt 0:00:17]} 48. hxg5 {[%emt 0:00:04]} Kd8 {[%emt 0:03:19]} 49. f6 {[%emt 0:00:26]} Ke8 {[%emt 0:00:44]} 50. g6 {[%emt 0:00:56]} b4 {[%emt 0:00:20]} 51. Kc4 1-0

[Event "WSTCC-65 2020"]
[Site "Prague"]
[Date "2020.03.06"]
[Round "1.34"]
[White "Heim, Sverre"]
[Black "Pacl, Vaclav"]
[Result "1/2-1/2"]
[ECO "B01"]
[WhiteElo "2316"]
[BlackElo "2006"]
[Annotator "ChessBase"]
[PlyCount "25"]
[EventDate "2020.03.06"]
[EventType "team-tourn"]
[EventCountry "CZE"]
[SourceTitle "playchess.com"]
[Source "ChessBase"]
[SourceQuality "1"]
[TimeControl "40/5400+30:1800+30"]

1. e4 {[%emt 0:00:00]} d5 {[%emt 0:00:00]} 2. exd5 {[%emt 0:00:00]} Qxd5 {[%emt 0:00:00]} 3. Nc3 {[%emt 0:00:03]} Qd8 {[%emt 0:00:00]} 4. d4 {[%emt 0:00:46]} Nf6 {[%emt 0:00:09]} 5. Bc4 {[%emt 0:01:55]} a6 {[%emt 0:00:22]} 6. Nf3 {[%emt 0:00:47]} b5 {[%emt 0:00:50]} 7. Bb3 {[%emt 0:01:59]} c5 {[%emt 0:00:08]} 8. dxc5 {[%emt 0:01:11]} Qxd1+ {[%emt 0:00:06]} 9. Kxd1 {[%emt 0:06:17]} e6 {[%emt 0:02:03]} 10. Be3 {[%emt 0:00:16]} Bb7 {[%emt 0:02:17]} 11. Ke2 {[%emt 0:11:36]} Nbd7 {[%emt 0:04:45]} 12. Rhd1 {[%emt 0:04:13]} Bxc5 {[%emt 0:03:56]} 13. h3 {[%emt 0:07:19]} 1/2-1/2

[Event "WSTCC-65 2020"]
[Site "Prague"]
[Date "2020.03.06"]
[Round "1.35"]
[White "Vavruska, Antonin"]
[Black "Moen, Ole Christian"]
[Result "1/2-1/2"]
[ECO "C55"]
[WhiteElo "1971"]
[BlackElo "2192"]
[Annotator "ChessBase"]
[PlyCount "25"]
[EventDate "2020.03.06"]
[EventType "team-tourn"]
[EventCountry "CZE"]
[SourceTitle "playchess.com"]
[Source "ChessBase"]
[SourceQuality "1"]
[TimeControl "40/5400+30:1800+30"]

1. e4 {[%emt 0:00:00]} e5 {[%emt 0:00:00]} 2. d4 {[%emt 0:00:00]} exd4 {[%emt 0:00:00]} 3. Bc4 {[%emt 0:00:00]} Nf6 {[%emt 0:01:23]} 4. Nf3 {[%emt 0:00:00]} Nc6 {[%emt 0:00:19]} 5. Ng5 {[%emt 0:00:25]} Ne5 {[%emt 0:00:41]} 6. Bb3 {[%emt 0:00:09]} d5 {[%emt 0:07:08]} 7. exd5 {[%emt 0:00:09]} h6 {[%emt 0:01:22]} 8. Qxd4 {[%emt 0:05:25]} Bd6 {[%emt 0:01:26]} 9. Nf3 {[%emt 0:12:21]} Nxf3+ {[%emt 0:01:33]} 10. gxf3 {[%emt 0:00:01]} O-O {[%emt 0:03:14]} 11. Be3 {[%emt 0:00:15]} Re8 {[%emt 0:03:53]} 12. Nc3 {[%emt 0:00:20]} Be5 {[%emt 0:00:52]} 13. Qd2 {[%emt 0:02:06]} 1/2-1/2

[Event "WSTCC-65 2020"]
[Site "Prague"]
[Date "2020.03.06"]
[Round "1.36"]
[White "Kristiansen, Erling"]
[Black "Nespor, Ivan"]
[Result "1-0"]
[ECO "E81"]
[WhiteElo "2123"]
[BlackElo "1707"]
[Annotator "ChessBase"]
[PlyCount "75"]
[EventDate "2020.03.06"]
[EventType "team-tourn"]
[EventCountry "CZE"]
[SourceTitle "playchess.com"]
[Source "ChessBase"]
[SourceQuality "1"]
[TimeControl "40/5400+30:1800+30"]

1. e4 {[%emt 0:00:00]} d6 {[%emt 0:00:00]} 2. d4 {[%emt 0:00:00]} Nf6 {[%emt 0:00:08]} 3. f3 {[%emt 0:00:04]} g6 {[%emt 0:01:51]} 4. c4 {[%emt 0:00:12]} Bg7 {[%emt 0:00:08]} 5. Nc3 {[%emt 0:00:12]} O-O {[%emt 0:00:58]} 6. Be3 {[%emt 0:00:12]} Nbd7 {[%emt 0:01:51]} 7. Qd2 {[%emt 0:01:26]} c6 {[%emt 0:05:19]} 8. Rd1 {[%emt 0:00:44]} Qa5 {[%emt 0:01:26]} 9. Nge2 {[%emt 0:00:22]} a6 {[%emt 0:11:45]} 10. Nc1 {[%emt 0:00:31]} b5 {[%emt 0:01:02]} 11. a3 {[%emt 0:01:19]} Rb8 {[%emt 0:04:58]} 12. Nb3 {[%emt 0:02:07]} Qc7 {[%emt 0:00:12]} 13. cxb5 {[%emt 0:00:51]} cxb5 {[%emt 0:03:48]} 14. Rc1 {[%emt 0:00:22]} Qd8 {[%emt 0:00:23]} 15. Na2 {[%emt 0:01:47]} Nb6 {[%emt 0:02:17]} 16. Na5 {[%emt 0:00:26]} Bb7 {[%emt 0:05:18]} 17. Nb4 {[%emt 0:00:47]} Qd7 {[%emt 0:04:58]} 18. d5 {[%emt 0:00:50]} Nc8 {[%emt 0:06:27]} 19. Be2 {[%emt 0:00:51]} e6 {[%emt 0:01:10]} 20. dxe6 {[%emt 0:01:29]} fxe6 {[%emt 0:01:37]} 21. O-O {[%emt 0:00:16]} d5 {[%emt 0:01:09]} 22. Rfd1 {[%emt 0:00:17]} Ne7 {[%emt 0:02:56]} 23. Nb3 {[%emt 0:06:25]} Rfc8 {[%emt 0:06:08]} 24. Nc5 {[%emt 0:00:25]} Qd6 {[%emt 0:00:42]} 25. e5 {[%emt 0:00:11]} Qxe5 {[%emt 0:00:15]} 26. Bf4 {[%emt 0:00:09]} Qh5 {[%emt 0:00:56]} 27. Bxb8 Rxb8 28. f4 {[%emt 0:07:53]} Qh4 {[%emt 0:03:12]} 29. Qe3 {[%emt 0:01:22]} Ne4 {[%emt 0:00:16]} 30. Nxe4 {[%emt 0:00:21]} dxe4 {[%emt 0:00:07]} 31. g3 {[%emt 0:01:48]} Nf5 {[%emt 0:00:47]} 32. Qa7 {[%emt 0:00:28]} Nxg3 {[%emt 0:00:11]} 33. Qxb8+ {[%emt 0:00:24]} Bf8 {[%emt 0:00:09]} 34. Rd8 {[%emt 0:04:32]} Nxe2+ {[%emt 0:01:04]} 35. Kf1 {[%emt 0:01:49]} e3 {[%emt 0:03:24]} 36. Rxf8+ {[%emt 0:00:20]} Kg7 {[%emt 0:00:00]} 37. Rc7+ {[%emt 0:00:00]} Kh6 {[%emt 0:00:00]} 38. Rxh7+ {[%emt 0:00:00]} 1-0

[Event "WSTCC-65 2020"]
[Site "Prague"]
[Date "2020.03.06"]
[Round "1.37"]
[White "Boidman, Yuri"]
[Black "Jones, Iolo C"]
[Result "1-0"]
[ECO "C47"]
[WhiteElo "2335"]
[BlackElo "2146"]
[Annotator "ChessBase"]
[PlyCount "89"]
[EventDate "2020.03.06"]
[EventType "team-tourn"]
[EventCountry "CZE"]
[SourceTitle "playchess.com"]
[Source "ChessBase"]
[SourceQuality "1"]
[TimeControl "40/5400+30:1800+30"]

1. e4 {[%emt 0:00:00]} e5 {[%emt 0:00:00]} 2. Nf3 {[%emt 0:00:00]} Nf6 {[%emt 0:00:03]} 3. Nc3 {[%emt 0:00:03]} Nc6 {[%emt 0:00:43]} 4. d4 {[%emt 0:00:08]} exd4 {[%emt 0:00:43]} 5. Nxd4 {[%emt 0:00:09]} Bb4 {[%emt 0:00:40]} 6. Nxc6 {[%emt 0:00:18]} bxc6 {[%emt 0:00:18]} 7. Bd3 {[%emt 0:00:14]} d5 {[%emt 0:01:02]} 8. exd5 {[%emt 0:00:12]} cxd5 {[%emt 0:00:21]} 9. Qe2+ {[%emt 0:00:08]} Qe7 {[%emt 0:05:57]} 10. Qxe7+ {[%emt 0:01:14]} Kxe7 {[%emt 0:02:35]} 11. O-O {[%emt 0:01:58]} c6 {[%emt 0:03:46]} 12. Ne2 {[%emt 0:00:14]} Re8 {[%emt 0:06:10]} 13. Nd4 {[%emt 0:01:39]} Bd7 {[%emt 0:02:17]} 14. Bf5 {[%emt 0:06:16]} Bc5 {[%emt 0:08:24]} 15. Bxd7 {[%emt 0:10:58]} Kxd7 {[%emt 0:00:29]} 16. Be3 {[%emt 0:14:12]} Ng4 {[%emt 0:07:01]} 17. Rad1 {[%emt 0:02:54]} f6 {[%emt 0:03:42]} 18. Bc1 {[%emt 0:02:14]} g6 {[%emt 0:05:25]} 19. h3 {[%emt 0:04:35]} Ne5 {[%emt 0:02:29]} 20. b3 {[%emt 0:00:14]} Kc7 {[%emt 0:01:58]} 21. Kh1 {[%emt 0:04:29]} Rad8 {[%emt 0:03:46]} 22. f4 {[%emt 0:03:26]} Nd7 {[%emt 0:01:02]} 23. Bb2 {[%emt 0:05:14]} f5 {[%emt 0:04:34]} 24. Rfe1 {[%emt 0:01:23]} Bxd4 {[%emt 0:00:50]} 25. Bxd4 {[%emt 0:00:24]} a6 {[%emt 0:06:03]} 26. c4 {[%emt 0:02:25]} Re4 {[%emt 0:06:08]} 27. Rxe4 {[%emt 0:03:12]} fxe4 {[%emt 0:03:20]} 28. Bc3 {[%emt 0:01:38]} Kd6 {[%emt 0:02:51]} 29. Kg1 {[%emt 0:00:52]} Ke6 {[%emt 0:01:31]} 30. Kf2 {[%emt 0:04:23]} Nc5 {[%emt 0:01:45]} 31. Rd4 {[%emt 0:07:28]} Rd7 {[%emt 0:04:12]} 32. cxd5+ {[%emt 0:01:48]} cxd5 {[%emt 0:01:42]} 33. Ke3 {[%emt 0:00:33]} Rc7 {[%emt 0:01:01]} 34. Rb4 {[%emt 0:04:07]} Rc6 {[%emt 0:01:50]} 35. Bd4 {[%emt 0:01:33]} Nd3 {[%emt 0:01:00]} 36. Rb7 {[%emt 0:00:33]} Nc1 {[%emt 0:02:15]} 37. g4 {[%emt 0:02:30]} Nxa2 {[%emt 0:01:17]} 38. Rxh7 {[%emt 0:02:51]} Nb4 {[%emt 0:01:22]} 39. Bh8 {[%emt 0:05:53]} Nc2+ {[%emt 0:01:11]} 40. Kd2 {[%emt 0:00:00]} d4 {[%emt 0:00:00]} 41. f5+ {[%emt 0:02:57]} Kd5 {[%emt 0:04:00]} 42. Rd7+ {[%emt 0:00:53]} Kc5 {[%emt 0:01:23]} 43. Kxc2 {[%emt 0:00:34]} gxf5 {[%emt 0:01:23]} 44. Bxd4+ {[%emt 0:02:43]} Kb4+ {[%emt 0:02:08]} 45. Kb2 {[%emt 0:00:23]} 1-0

[Event "WSTCC-65 2020"]
[Site "Prague"]
[Date "2020.03.06"]
[Round "1.38"]
[White "Van Kemenade, Rudy"]
[Black "Khanukov, Boris"]
[Result "0-1"]
[ECO "B30"]
[WhiteElo "1915"]
[BlackElo "2293"]
[Annotator "ChessBase"]
[PlyCount "72"]
[EventDate "2020.03.06"]
[EventType "team-tourn"]
[EventCountry "CZE"]
[SourceTitle "playchess.com"]
[Source "ChessBase"]
[SourceQuality "1"]
[TimeControl "40/5400+30:1800+30"]

1. e4 {[%emt 0:00:00]} c5 {[%emt 0:00:00]} 2. Nf3 {[%emt 0:00:00]} Nc6 {[%emt 0:00:00]} 3. Bb5 {[%emt 0:00:00]} e6 {[%emt 0:01:55]} 4. Bxc6 {[%emt 0:00:00]} bxc6 {[%emt 0:01:13]} 5. d3 {[%emt 0:00:14]} d5 {[%emt 0:01:40]} 6. c4 {[%emt 0:00:10]} Nf6 {[%emt 0:02:46]} 7. e5 {[%emt 0:01:21]} Nd7 {[%emt 0:00:10]} 8. Nc3 {[%emt 0:00:18]} Be7 {[%emt 0:00:38]} 9. h4 {[%emt 0:00:31]} h6 {[%emt 0:00:54]} 10. h5 {[%emt 0:00:17]} f6 {[%emt 0:11:57]} 11. Qe2 {[%emt 0:00:22]} fxe5 {[%emt 0:11:08]} 12. Nxe5 {[%emt 0:00:07]} Nxe5 {[%emt 0:00:31]} 13. Qxe5 {[%emt 0:00:08]} Bf6 {[%emt 0:00:55]} 14. Qg3 {[%emt 0:00:08]} Qe7 {[%emt 0:04:56]} 15. Bf4 {[%emt 0:03:04]} e5 {[%emt 0:04:40]} 16. Bd2 {[%emt 0:00:11]} Be6 {[%emt 0:00:40]} 17. b3 {[%emt 0:00:07]} O-O-O {[%emt 0:18:34]} 18. Rc1 {[%emt 0:04:41]} dxc4 {[%emt 0:18:23]} 19. bxc4 {[%emt 0:02:03]} Qd7 {[%emt 0:02:12]} 20. Ne4 {[%emt 0:01:32]} Bf5 {[%emt 0:11:32]} 21. Ba5 {[%emt 0:02:28]} Bxe4 {[%emt 0:00:45]} 22. Bxd8 {[%emt 0:00:10]} Rxd8 {[%emt 0:00:12]} 23. O-O {[%emt 0:01:02]} Bxd3 {[%emt 0:00:46]} 24. Rfd1 {[%emt 0:00:53]} Qf5 {[%emt 0:00:40]} 25. Rc3 {[%emt 0:00:46]} e4 {[%emt 0:01:11]} 26. Rb3 {[%emt 0:00:15]} Be5 {[%emt 0:00:37]} 27. Qe3 {[%emt 0:00:15]} Bd4 {[%emt 0:01:23]} 28. Qg3 {[%emt 0:01:01]} Be5 {[%emt 0:00:25]} 29. Qe3 {[%emt 0:00:28]} Qxh5 {[%emt 0:01:06]} 30. Rdxd3 {[%emt 0:02:44]} Rxd3 {[%emt 0:00:37]} 31. Rxd3 {[%emt 0:00:08]} exd3 {[%emt 0:00:12]} 32. Qxd3 {[%emt 0:00:14]} Bd4 {[%emt 0:00:24]} 33. Qe4 {[%emt 0:00:26]} Kd7 {[%emt 0:00:27]} 34. Qb1 {[%emt 0:00:55]} Kc7 {[%emt 0:01:04]} 35. Qe1 {[%emt 0:00:17]} Qf7 {[%emt 0:00:27]} 36. Qa5+ {[%emt 0:00:24]} Kb7 {[%emt 0:00:11]} 0-1

[Event "WSTCC-65 2020"]
[Site "Prague"]
[Date "2020.03.06"]
[Round "1.39"]
[White "Salov, Sergej"]
[Black "Bevan, Peter M"]
[Result "1-0"]
[ECO "B17"]
[WhiteElo "2135"]
[BlackElo "1901"]
[Annotator "ChessBase"]
[PlyCount "57"]
[EventDate "2020.03.06"]
[EventType "team-tourn"]
[EventCountry "CZE"]
[SourceTitle "playchess.com"]
[Source "ChessBase"]
[SourceQuality "1"]
[TimeControl "40/5400+30:1800+30"]

1. e4 {[%emt 0:00:00]} d5 {[%emt 0:00:00]} 2. exd5 {[%emt 0:00:00]} Qxd5 {[%emt 0:00:00]} 3. Nc3 {[%emt 0:00:01]} Qd8 {[%emt 0:00:00]} 4. d4 {[%emt 0:00:25]} c6 {[%emt 0:00:00]} 5. Ne4 {[%emt 0:02:35]} Nd7 {[%emt 0:04:43]} 6. Bc4 {[%emt 0:01:02]} Ngf6 {[%emt 0:00:33]} 7. Ng5 {[%emt 0:00:30]} e6 {[%emt 0:00:40]} 8. Qe2 {[%emt 0:00:55]} Nb6 {[%emt 0:05:32]} 9. Bd3 {[%emt 0:01:51]} Be7 {[%emt 0:06:10]} 10. N1f3 {[%emt 0:03:34]} O-O {[%emt 0:00:24]} 11. c3 {[%emt 0:01:56]} Qc7 {[%emt 0:04:43]} 12. Ne5 {[%emt 0:12:07]} Nbd5 {[%emt 0:01:37]} 13. O-O {[%emt 0:08:37]} c5 {[%emt 0:02:18]} 14. dxc5 {[%emt 0:06:45]} Bxc5 {[%emt 0:00:31]} 15. a3 {[%emt 0:01:37]} h6 {[%emt 0:10:11]} 16. Ngf3 {[%emt 0:01:55]} b6 {[%emt 0:01:49]} 17. c4 {[%emt 0:01:02]} Ne7 {[%emt 0:00:28]} 18. b4 {[%emt 0:09:00]} Bd6 {[%emt 0:00:15]} 19. Bb2 {[%emt 0:00:13]} Bb7 {[%emt 0:02:34]} 20. Rac1 {[%emt 0:01:35]} Bxf3 {[%emt 0:22:59]} 21. Nxf3 {[%emt 0:00:23]} Bf4 {[%emt 0:00:27]} 22. Rc2 {[%emt 0:00:49]} Rad8 {[%emt 0:00:18]} 23. g3 {[%emt 0:06:02]} Bd6 {[%emt 0:01:55]} 24. Nd4 {[%emt 0:18:54]} a6 {[%emt 0:01:58]} 25. c5 {[%emt 0:00:52]} bxc5 {[%emt 0:00:09]} 26. bxc5 {[%emt 0:00:06]} Be5 {[%emt 0:00:08]} 27. Nxe6 {[%emt 0:00:27]} fxe6 {[%emt 0:00:05]} 28. Bxe5 {[%emt 0:00:14]} Qa5 {[%emt 0:01:05]} 29. Bd6 {[%emt 0:01:03]} 1-0

[Event "WSTCC-65 2020"]
[Site "Prague"]
[Date "2020.03.06"]
[Round "1.40"]
[White "Harle, Bill"]
[Black "Gruzmann, Boris"]
[Result "0-1"]
[ECO "A53"]
[WhiteElo "1746"]
[BlackElo "2206"]
[Annotator "ChessBase"]
[PlyCount "44"]
[EventDate "2020.03.06"]
[EventType "team-tourn"]
[EventCountry "CZE"]
[SourceTitle "playchess.com"]
[Source "ChessBase"]
[SourceQuality "1"]
[TimeControl "40/5400+30:1800+30"]

1. d4 {[%emt 0:00:00]} Nf6 {[%emt 0:00:00]} 2. c4 {[%emt 0:00:00]} d6 {[%emt 0:00:13]} 3. Nc3 {[%emt 0:00:46]} Bf5 {[%emt 0:01:02]} 4. Nf3 {[%emt 0:01:12]} h6 {[%emt 0:03:37]} 5. g3 {[%emt 0:03:14]} Ne4 {[%emt 0:02:26]} 6. Nd2 {[%emt 0:00:29]} Nxc3 {[%emt 0:01:08]} 7. bxc3 {[%emt 0:00:02]} c5 {[%emt 0:03:59]} 8. e4 {[%emt 0:01:05]} Bd7 {[%emt 0:00:43]} 9. Bg2 {[%emt 0:01:36]} Nc6 {[%emt 0:01:04]} 10. d5 {[%emt 0:03:16]} Ne5 {[%emt 0:03:29]} 11. O-O {[%emt 0:02:23]} Qa5 {[%emt 0:04:56]} 12. f4 {[%emt 0:05:58]} Qxc3 {[%emt 0:05:52]} 13. Rb1 {[%emt 0:00:56]} Nxc4 {[%emt 0:09:37]} 14. Nb3 {[%emt 0:05:39]} b5 {[%emt 0:04:11]} 15. Rf2 {[%emt 0:07:38]} h5 16. Bf3 {[%emt 0:03:35]} h4 {[%emt 0:09:22]} 17. Rc2 {[%emt 0:01:45]} Qf6 {[%emt 0:01:16]} 18. g4 {[%emt 0:06:34]} g5 {[%emt 0:03:57]} 19. f5 {[%emt 0:03:23]} Bg7 {[%emt 0:00:37]} 20. Be2 {[%emt 0:02:00]} Nb6 {[%emt 0:02:35]} 21. Qd2 {[%emt 0:04:20]} Na4 {[%emt 0:01:58]} 22. Bb2 {[%emt 0:09:02]} Nxb2 {[%emt 0:01:05]} 0-1

[Event "WSTCC-65 2020"]
[Site "Prague"]
[Date "2020.03.06"]
[Round "1.44"]
[White "Hammar, Bengt"]
[Black "Andersson, Erik"]
[Result "1-0"]
[ECO "B14"]
[WhiteElo "2142"]
[BlackElo "1607"]
[Annotator "ChessBase"]
[PlyCount "57"]
[EventDate "2020.03.06"]
[EventType "team-tourn"]
[EventCountry "CZE"]
[SourceTitle "playchess.com"]
[Source "ChessBase"]
[SourceQuality "1"]
[TimeControl "40/5400+30:1800+30"]

1. e4 {[%emt 0:00:00]} c6 {[%emt 0:00:00]} 2. d4 {[%emt 0:00:37]} d5 {[%emt 0:00:00]} 3. exd5 {[%emt 0:02:29]} cxd5 {[%emt 0:00:08]} 4. c4 {[%emt 0:00:14]} Nf6 {[%emt 0:00:52]} 5. Nc3 {[%emt 0:00:27]} e6 {[%emt 0:02:10]} 6. Nf3 {[%emt 0:03:53]} Be7 {[%emt 0:01:17]} 7. Bd3 {[%emt 0:01:22]} dxc4 {[%emt 0:03:30]} 8. Bxc4 {[%emt 0:00:22]} O-O {[%emt 0:01:05]} 9. O-O {[%emt 0:00:29]} a6 {[%emt 0:05:24]} 10. a4 {[%emt 0:05:22]} Qc7 {[%emt 0:09:52]} 11. Qe2 {[%emt 0:02:00]} h6 {[%emt 0:12:07]} 12. Ne5 {[%emt 0:12:55]} Nc6 {[%emt 0:04:45]} 13. Rd1 {[%emt 0:02:58]} Bd6 {[%emt 0:04:23]} 14. f4 {[%emt 0:04:57]} Nb4 {[%emt 0:06:26]} 15. Bb3 {[%emt 0:11:13]} Nbd5 {[%emt 0:05:53]} 16. Nxd5 {[%emt 0:02:01]} exd5 {[%emt 0:02:26]} 17. Qd3 {[%emt 0:01:31]} Re8 {[%emt 0:05:58]} 18. Be3 {[%emt 0:02:08]} g6 {[%emt 0:03:11]} 19. Rac1 {[%emt 0:10:31]} Qe7 {[%emt 0:00:14]} 20. Bf2 {[%emt 0:00:39]} Bf5 {[%emt 0:02:09]} 21. Qf3 {[%emt 0:00:52]} Be4 {[%emt 0:07:42]} 22. Qh3 {[%emt 0:05:58]} Kg7 {[%emt 0:01:35]} 23. Bh4 {[%emt 0:01:34]} Bf5 {[%emt 0:05:04]} 24. Qf3 {[%emt 0:02:17]} Be4 {[%emt 0:01:39]} 25. Qf2 {[%emt 0:01:39]} Qe6 {[%emt 0:00:45]} 26. h3 {[%emt 0:00:35]} h5 {[%emt 0:02:48]} 27. Rc3 {[%emt 0:05:09]} Ng8 {[%emt 0:01:11]} 28. Re3 {[%emt 0:01:37]} Ne7 {[%emt 0:00:27]} 29. Rxe4 {[%emt 0:00:22]} 1-0

[Event "WSTCC-65 2020"]
[Site "Prague"]
[Date "2020.03.06"]
[Round "1.45"]
[White "Ackermann, Hans Werner"]
[Black "Galandauer, Jan"]
[Result "1-0"]
[ECO "A06"]
[WhiteElo "2242"]
[BlackElo "1949"]
[Annotator "ChessBase"]
[PlyCount "97"]
[EventDate "2020.03.06"]
[EventType "team-tourn"]
[EventCountry "CZE"]
[SourceTitle "playchess.com"]
[Source "ChessBase"]
[SourceQuality "1"]
[TimeControl "40/5400+30:1800+30"]

1. Nf3 {[%emt 0:00:00]} d5 {[%emt 0:00:00]} 2. b3 {[%emt 0:00:01]} Nc6 {[%emt 0:01:12]} 3. Bb2 {[%emt 0:00:47]} Bg4 {[%emt 0:02:42]} 4. e3 {[%emt 0:03:38]} Nf6 {[%emt 0:05:07]} 5. d4 {[%emt 0:00:57]} e6 {[%emt 0:01:04]} 6. a3 {[%emt 0:00:25]} Bd6 {[%emt 0:01:41]} 7. c4 {[%emt 0:00:56]} O-O {[%emt 0:05:37]} 8. Nc3 {[%emt 0:04:25]} dxc4 {[%emt 0:03:13]} 9. bxc4 {[%emt 0:01:23]} e5 {[%emt 0:00:17]} 10. d5 {[%emt 0:00:47]} Ne7 {[%emt 0:03:38]} 11. h3 {[%emt 0:03:56]} Bh5 {[%emt 0:00:57]} 12. g4 {[%emt 0:06:53]} Bg6 {[%emt 0:00:16]} 13. Nd2 {[%emt 0:00:49]} c6 {[%emt 0:03:58]} 14. h4 {[%emt 0:06:31]} h5 {[%emt 0:00:41]} 15. g5 {[%emt 0:00:37]} Ng4 {[%emt 0:09:43]} 16. Be2 {[%emt 0:06:08]} f5 {[%emt 0:00:56]} 17. Bxg4 {[%emt 0:04:30]} fxg4 {[%emt 0:00:27]} 18. Nde4 {[%emt 0:00:17]} cxd5 {[%emt 0:02:02]} 19. cxd5 {[%emt 0:00:56]} Bxe4 {[%emt 0:02:02]} 20. Nxe4 {[%emt 0:00:17]} Nf5 {[%emt 0:04:40]} 21. Qb3 {[%emt 0:01:51]} Qa5+ {[%emt 0:03:51]} 22. Bc3 {[%emt 0:00:53]} Qc7 {[%emt 0:00:17]} 23. Rb1 {[%emt 0:16:28]} b6 {[%emt 0:03:14]} 24. Nxd6 {[%emt 0:03:20]} Qxd6 {[%emt 0:00:22]} 25. Bb4 {[%emt 0:00:09]} Qd7 {[%emt 0:04:14]} 26. Bxf8 {[%emt 0:02:35]} Rxf8 {[%emt 0:00:11]} 27. Rb2 {[%emt 0:06:28]} g3 {[%emt 0:00:58]} 28. f3 {[%emt 0:10:30]} Rc8 {[%emt 0:06:46]} 29. Rc2 {[%emt 0:01:11]} Rxc2 {[%emt 0:01:28]} 30. Qxc2 {[%emt 0:00:08]} Nxe3 {[%emt 0:00:10]} 31. Qc6 {[%emt 0:01:23]} Qf7 {[%emt 0:08:33]} 32. Qe6 {[%emt 0:02:37]} Nxd5 {[%emt 0:00:43]} 33. Qxf7+ {[%emt 0:00:53]} Kxf7 {[%emt 0:00:18]} 34. Rg1 {[%emt 0:00:13]} Ne3 {[%emt 0:03:04]} 35. Rxg3 {[%emt 0:01:01]} Nc2+ 36. Ke2 {[%emt 0:05:53]} b5 {[%emt 0:02:23]} 37. f4 {[%emt 0:05:57]} exf4 {[%emt 0:00:23]} 38. Rd3 {[%emt 0:00:14]} Ke6 {[%emt 0:00:47]} 39. Rd8 {[%emt 0:01:37]} Nxa3 {[%emt 0:01:06]} 40. Kf3 {[%emt 0:00:00]} a5 {[%emt 0:00:00]} 41. Kxf4 {[%emt 0:00:21]} Nc4 {[%emt 0:02:35]} 42. Rg8 {[%emt 0:02:36]} b4 {[%emt 0:05:28]} 43. Rxg7 {[%emt 0:01:31]} b3 {[%emt 0:00:19]} 44. Rb7 {[%emt 0:00:05]} a4 {[%emt 0:00:21]} 45. g6 {[%emt 0:00:06]} Nd6 {[%emt 0:12:09]} 46. Rb6 {[%emt 0:09:35]} b2 {[%emt 0:02:45]} 47. Rxb2 {[%emt 0:00:20]} Ne8 {[%emt 0:00:23]} 48. Rb6+ {[%emt 0:00:18]} Ke7 {[%emt 0:00:17]} 49. Ra6 {[%emt 0:00:40]} 1-0